[Event "Kvibergspelen 2018"]
[Site "Prioritet Serneke Arena, Krutvagen 2, Gothenburg, Sweden"]
[Date "2018.04.22"]
[Round "7.19"]
[White "Moller, Mikael"]
[Black "Subramanian, Aditya"]
[Result "1/2-1/2"]
[TimeControl "15 minutes + 5 seconds per move from move one (Round 1 - 4) / 90 minutes + 30 seconds per move from move one (Round 5 - 8)"]
[WhiteFideId "1738461"]
[BlackFideId "1718924"]
[WhiteElo "1962"]
[BlackElo "2128"]

1. e4 {[%clk 01:30:58]} {[%emt 00:00:02]} e5 {[%clk 01:30:53]} {[%emt
00:00:06]} 2. Nf3 {[%clk 01:31:23]} {[%emt 00:00:05]} Nc6 {[%clk 01:31:18]}
{[%emt 00:00:05]} 3. d4 {[%clk 01:31:48]} {[%emt 00:00:06]} exd4 {[%clk
01:31:42]} {[%emt 00:00:06]} 4. Nxd4 {[%clk 01:32:13]} {[%emt 00:00:05]} Bc5
{[%clk 01:32:04]} {[%emt 00:00:07]} 5. Nb3 {[%clk 01:32:34]} {[%emt 00:00:09]}
Bb6 {[%clk 01:32:28]} {[%emt 00:00:06]} 6. Nc3 {[%clk 01:32:59]} {[%emt
00:00:06]} Nf6 {[%clk 01:32:52]} {[%emt 00:00:06]} 7. Bg5 {[%clk 01:32:51]}
{[%emt 00:00:37]} d6 {[%clk 01:33:10]} {[%emt 00:00:12]} 8. Qe2 {[%clk
01:28:32]} {[%emt 00:04:50]} h6 {[%clk 01:33:28]} {[%emt 00:00:12]} 9. Bh4
{[%clk 01:28:56]} {[%emt 00:00:07]} g5 {[%clk 01:22:10]} {[%emt 00:11:47]} 10.
Bg3 {[%clk 01:23:59]} {[%emt 00:05:27]} Qe7 {[%clk 01:22:15]} {[%emt 00:00:25]}
11. O-O-O {[%clk 01:23:42]} {[%emt 00:00:47]} Bd7 {[%clk 01:21:22]} {[%emt
00:01:23]} 12. f3 {[%clk 01:22:55]} {[%emt 00:01:17]} O-O-O {[%clk 01:20:11]}
{[%emt 00:01:40]} 13. Na4 {[%clk 01:20:21]} {[%emt 00:03:05]} Nh5 {[%clk
01:14:21]} {[%emt 00:06:19]} 14. Nxb6+ {[%clk 01:17:30]} {[%emt 00:03:22]} axb6
{[%clk 01:13:47]} {[%emt 00:01:04]} 15. Bf2 {[%clk 01:17:54]} {[%emt 00:00:05]}
Ne5 {[%clk 01:09:13]} {[%emt 00:05:04]} 16. Nd4 {[%clk 01:17:03]} {[%emt
00:01:22]} g4 {[%clk 01:03:24]} {[%emt 00:06:18]} 17. Kb1 {[%clk 01:10:33]}
{[%emt 00:07:00]} Qf6 {[%clk 01:01:26]} {[%emt 00:02:28]} 18. Qe3 {[%clk
01:07:18]} {[%emt 00:03:46]} c5 {[%clk 00:47:38]} {[%emt 00:14:18]} 19. Qb3
{[%clk 00:59:41]} {[%emt 00:08:06]} Kc7 {[%clk 00:44:17]} {[%emt 00:03:51]} 20.
h3 {[%clk 00:41:21]} {[%emt 00:18:50]} gxh3 {[%clk 00:40:20]} {[%emt 00:04:28]}
21. g4 {[%clk 00:24:49]} {[%emt 00:17:02]} Nf4 {[%clk 00:31:56]} {[%emt
00:08:53]} 22. Bxh3 {[%clk 00:20:00]} {[%emt 00:05:19]} Bc6 {[%clk 00:24:40]}
{[%emt 00:07:45]} 23. Bf1 {[%clk 00:17:23]} {[%emt 00:03:07]} cxd4 {[%clk
00:23:53]} {[%emt 00:01:17]} 24. Bxd4 {[%clk 00:17:44]} {[%emt 00:00:10]} Qe6
{[%clk 00:23:12]} {[%emt 00:01:11]} 25. Qxb6+ {[%clk 00:17:27]} {[%emt
00:00:47]} Kd7 {[%clk 00:23:30]} {[%emt 00:00:11]} 26. Bb5 {[%clk 00:16:32]}
{[%emt 00:01:25]} Ke7 {[%clk 00:23:01]} {[%emt 00:00:59]} 27. Bxe5 {[%clk
00:15:58]} {[%emt 00:01:04]} dxe5 {[%clk 00:21:48]} {[%emt 00:01:43]} 28. Bxc6
{[%clk 00:16:20]} {[%emt 00:00:09]} bxc6 {[%clk 00:18:55]} {[%emt 00:03:23]} 29.
Qc5+ {[%clk 00:14:18]} {[%emt 00:02:31]} Rd6 {[%clk 00:18:13]} {[%emt
00:01:12]} 30. Rd2 {[%clk 00:14:17]} {[%emt 00:00:31]} Rhd8 {[%clk 00:17:40]}
{[%emt 00:01:03]} 31. Rhd1 {[%clk 00:14:42]} {[%emt 00:00:05]} f6 {[%clk
00:17:15]} {[%emt 00:00:55]} 32. a4 {[%clk 00:15:06]} {[%emt 00:00:06]} Nh3
{[%clk 00:15:02]} {[%emt 00:02:43]} 33. a5 {[%clk 00:15:09]} {[%emt 00:00:29]}
Ng5 {[%clk 00:14:52]} {[%emt 00:00:40]} 34. Rxd6 {[%clk 00:14:33]} {[%emt
00:01:06]} Rxd6 {[%clk 00:15:09]} {[%emt 00:00:13]} 35. a6 {[%clk 00:14:52]}
{[%emt 00:00:11]} Nf7 {[%clk 00:15:27]} {[%emt 00:00:12]} 36. Rxd6 {[%clk
00:12:27]} {[%emt 00:02:55]} Nxd6 {[%clk 00:15:46]} {[%emt 00:00:10]} 37. Qxc6
{[%clk 00:12:45]} {[%emt 00:00:13]} Nc8 {[%clk 00:16:09]} {[%emt 00:00:07]} 38.
Qc5+ {[%clk 00:12:07]} {[%emt 00:01:08]} Ke8 {[%clk 00:15:27]} {[%emt
00:01:12]} 39. a7 {[%clk 00:12:16]} {[%emt 00:00:21]} Nxa7 {[%clk 00:15:49]}
{[%emt 00:00:07]} 40. Qxa7 {[%clk 00:12:40]} {[%emt 00:00:06]} Qc4 {[%clk
00:16:13]} {[%emt 00:00:06]} 41. Qa8+ {[%clk 00:12:08]} {[%emt 00:01:03]} Ke7
{[%clk 00:16:19]} {[%emt 00:00:23]} 42. Qb7+ {[%clk 00:11:25]} {[%emt
00:01:13]} Ke8 {[%clk 00:15:45]} {[%emt 00:01:04]} 43. Qb3 {[%clk 00:11:20]}
{[%emt 00:00:35]} Qf1+ {[%clk 00:15:58]} {[%emt 00:00:17]} 44. Ka2 {[%clk
00:11:43]} {[%emt 00:00:08]} Qa6+ {[%clk 00:16:16]} {[%emt 00:00:12]} 45. Qa3
{[%clk 00:12:03]} {[%emt 00:00:10]} Qc4+ {[%clk 00:16:21]} {[%emt 00:00:24]} 46.
Qb3 {[%clk 00:09:33]} {[%emt 00:03:01]} Qa6+ {[%clk 00:16:42]} {[%emt
00:00:09]} 47. Qa3 {[%clk 00:09:46]} {[%emt 00:00:17]} Qc4+ {[%clk 00:17:05]}
{[%emt 00:00:06]} 1/2-1/2

[Event "Kvibergspelen 2018"]
[Site "Prioritet Serneke Arena, Krutvagen 2, Gothenburg, Sweden"]
[Date "2018.04.22"]
[Round "7.20"]
[White "Dahlstrom, Rickard"]
[Black "Strom, Leif"]
[Result "0-1"]
[TimeControl "15 minutes + 5 seconds per move from move one (Round 1 - 4) / 90 minutes + 30 seconds per move from move one (Round 5 - 8)"]
[WhiteFideId "1702050"]
[BlackFideId "1709410"]
[WhiteElo "1998"]
[BlackElo "2111"]

1. d4 {[%clk 01:30:54]} {[%emt 00:00:03]} g6 {[%clk 01:30:53]} {[%emt
00:00:08]} 2. c4 {[%clk 01:31:09]} {[%emt 00:00:15]} Bg7 {[%clk 01:31:18]}
{[%emt 00:00:06]} 3. Nc3 {[%clk 01:31:30]} {[%emt 00:00:09]} d6 {[%clk
01:31:41]} {[%emt 00:00:07]} 4. e4 {[%clk 01:31:24]} {[%emt 00:00:36]} Nd7
{[%clk 01:31:25]} {[%emt 00:00:46]} 5. Be3 {[%clk 01:30:24]} {[%emt 00:01:29]}
c5 {[%clk 01:31:18]} {[%emt 00:00:38]} 6. Nge2 {[%clk 01:28:51]} {[%emt
00:02:02]} Ngf6 {[%clk 01:30:53]} {[%emt 00:00:56]} 7. f3 {[%clk 01:28:49]}
{[%emt 00:00:31]} O-O {[%clk 01:30:44]} {[%emt 00:00:39]} 8. Qd2 {[%clk
01:28:06]} {[%emt 00:01:13]} a6 {[%clk 01:29:53]} {[%emt 00:01:22]} 9. Nc1
{[%clk 01:26:16]} {[%emt 00:02:19]} Qc7 {[%clk 01:23:55]} {[%emt 00:06:29]} 10.
Nb3 {[%clk 01:18:33]} {[%emt 00:08:12]} e5 {[%clk 01:15:46]} {[%emt 00:08:40]}
11. dxc5 {[%clk 01:13:32]} {[%emt 00:05:30]} dxc5 {[%clk 01:14:58]} {[%emt
00:01:19]} 12. Rd1 {[%clk 01:09:44]} {[%emt 00:04:18]} b6 {[%clk 01:14:21]}
{[%emt 00:01:07]} 13. Be2 {[%clk 01:08:34]} {[%emt 00:01:39]} Bb7 {[%clk
01:00:48]} {[%emt 00:14:04]} 14. h4 {[%clk 01:00:30]} {[%emt 00:08:32]} Rfd8
{[%clk 00:58:40]} {[%emt 00:02:38]} 15. Bg5 {[%clk 00:57:36]} {[%emt 00:03:24]}
Nf8 {[%clk 00:52:03]} {[%emt 00:07:08]} 16. Nd5 {[%clk 00:52:52]} {[%emt
00:05:13]} Bxd5 {[%clk 00:52:25]} {[%emt 00:00:08]} 17. cxd5 {[%clk 00:51:05]}
{[%emt 00:02:18]} c4 {[%clk 00:49:39]} {[%emt 00:03:16]} 18. Qc3 {[%clk
00:49:44]} {[%emt 00:01:51]} b5 {[%clk 00:49:43]} {[%emt 00:00:26]} 19. Na5
{[%clk 00:45:59]} {[%emt 00:04:13]} Rd6 {[%clk 00:41:40]} {[%emt 00:08:35]} 20.
Nc6 {[%clk 00:39:34]} {[%emt 00:06:54]} N8d7 {[%clk 00:21:37]} {[%emt
00:20:33]} 21. Be3 {[%clk 00:34:36]} {[%emt 00:05:28]} Nb6 {[%clk 00:17:06]}
{[%emt 00:05:02]} 22. Bc5 {[%clk 00:26:01]} {[%emt 00:09:04]} Rxc6 {[%clk
00:17:03]} {[%emt 00:00:33]} 23. dxc6 {[%clk 00:24:55]} {[%emt 00:01:36]} Na4
{[%clk 00:17:32]} {[%emt 00:00:01]} 24. Qa3 {[%clk 00:17:54]} {[%emt 00:07:31]}
Qxc6 {[%clk 00:17:52]} {[%emt 00:00:11]} 25. Be7 {[%clk 00:16:24]} {[%emt
00:01:59]} Ne8 {[%clk 00:15:14]} {[%emt 00:03:08]} 26. O-O {[%clk 00:12:21]}
{[%emt 00:04:33]} a5 {[%clk 00:15:21]} {[%emt 00:00:23]} 27. Rd2 {[%clk
00:11:01]} {[%emt 00:01:50]} Bh6 {[%clk 00:14:38]} {[%emt 00:01:13]} 28. f4
{[%clk 00:09:23]} {[%emt 00:02:08]} Bxf4 {[%clk 00:14:51]} {[%emt 00:00:17]} 29.
Rc2 {[%clk 00:06:53]} {[%emt 00:02:59]} Qxe4 {[%clk 00:12:57]} {[%emt
00:02:24]} 30. Qf3 {[%clk 00:06:39]} {[%emt 00:00:44]} Qd4+ {[%clk 00:11:48]}
{[%emt 00:01:40]} 31. Kh1 {[%clk 00:06:48]} {[%emt 00:00:22]} Qa7 {[%clk
00:12:02]} {[%emt 00:00:16]} 32. g3 {[%clk 00:06:55]} {[%emt 00:00:22]} Qxe7
{[%clk 00:12:18]} {[%emt 00:00:13]} 33. Qxa8 {[%clk 00:07:13]} {[%emt
00:00:13]} Bxg3 {[%clk 00:12:37]} {[%emt 00:00:11]} 34. Qe4 {[%clk 00:06:43]}
{[%emt 00:01:00]} Nc5 {[%clk 00:12:09]} {[%emt 00:00:58]} 35. Qd5 {[%clk
00:05:26]} {[%emt 00:01:48]} Qxh4 {[%clk 00:11:42]} {[%emt 00:00:57]} 36. Kg2
{[%clk 00:05:25]} {[%emt 00:00:30]} Qh2+ {[%clk 00:11:08]} {[%emt 00:01:04]} 37.
Kf3 {[%clk 00:05:48]} {[%emt 00:00:08]} Ne6 {[%clk 00:11:11]} {[%emt 00:00:26]}
38. Bd1 {[%clk 00:05:01]} {[%emt 00:01:17]} Ng5+ {[%clk 00:10:59]} {[%emt
00:00:42]} 39. Ke3 {[%clk 00:04:43]} {[%emt 00:00:47]} Bf4+ {[%clk 00:10:45]}
{[%emt 00:00:44]} 40. Rxf4 {[%clk 00:04:53]} {[%emt 00:00:20]} Qxf4+ {[%clk
00:09:37]} {[%emt 00:01:38]} 41. Ke2 {[%clk 00:05:17]} {[%emt 00:00:07]} Ne4
{[%clk 00:09:27]} {[%emt 00:00:40]} 42. Ke1 {[%clk 00:05:05]} {[%emt 00:00:42]}
Qg3+ {[%clk 00:09:28]} {[%emt 00:00:30]} 43. Kf1 {[%clk 00:05:15]} {[%emt
00:00:19]} N8f6 {[%clk 00:08:15]} {[%emt 00:01:43]} 44. Qd8+ {[%clk 00:04:22]}
{[%emt 00:01:23]} Kg7 {[%clk 00:08:38]} {[%emt 00:00:07]} 45. Rg2 {[%clk
00:03:23]} {[%emt 00:01:29]} Qf4+ {[%clk 00:08:52]} {[%emt 00:00:16]} 46. Kg1
{[%clk 00:03:34]} {[%emt 00:00:20]} h5 {[%clk 00:07:09]} {[%emt 00:02:12]} 47.
Qxa5 {[%clk 00:03:33]} {[%emt 00:00:32]} h4 {[%clk 00:07:18]} {[%emt 00:00:21]}
48. Qe1 {[%clk 00:03:46]} {[%emt 00:00:16]} h3 {[%clk 00:07:18]} {[%emt
00:00:31]} 49. Rc2 {[%clk 00:03:23]} {[%emt 00:00:53]} Ng4 {[%clk 00:07:27]}
{[%emt 00:00:21]} 50. Bxg4 {[%clk 00:03:10]} {[%emt 00:00:43]} Qxg4+ {[%clk
00:07:51]} {[%emt 00:00:07]} 51. Kh2 {[%clk 00:03:27]} {[%emt 00:00:13]} Qf4
{[%clk 00:05:49]} {[%emt 00:02:32]} 52. Kxh3 {[%clk 00:03:35]} {[%emt
00:00:22]} Ng5 {[%clk 00:06:11]} {[%emt 00:00:08]} 53. Kg2 {[%clk 00:03:57]}
{[%emt 00:00:07]} Qf3+ {[%clk 00:06:18]} {[%emt 00:00:23]} 54. Kg1 {[%clk
00:03:31]} {[%emt 00:00:56]} Qd5 {[%clk 00:04:17]} {[%emt 00:02:32]} 55. Kf2
{[%clk 00:01:53]} {[%emt 00:02:08]} Nf3 {[%clk 00:04:13]} {[%emt 00:00:35]} 56.
Qe3 {[%clk 00:02:01]} {[%emt 00:00:21]} e4 {[%clk 00:03:59]} {[%emt 00:00:44]}
57. Re2 {[%clk 00:01:56]} {[%emt 00:00:35]} f5 {[%clk 00:03:13]} {[%emt
00:01:17]} 58. Qa7+ {[%clk 00:01:42]} {[%emt 00:00:44]} Kh6 {[%clk 00:03:16]}
{[%emt 00:00:27]} 59. Qb6 {[%clk 00:01:03]} {[%emt 00:01:09]} Kh5 {[%clk
00:03:31]} {[%emt 00:00:14]} 60. Qa7 {[%clk 00:00:49]} {[%emt 00:00:45]} Qe5
{[%clk 00:03:15]} {[%emt 00:00:46]} 61. Qh7 {[%clk 00:00:39]} {[%emt 00:00:40]}
Kg5 {[%clk 00:03:29]} {[%emt 00:00:16]} 62. Kf1 {[%clk 00:00:49]} {[%emt
00:00:20]} Nh4 {[%clk 00:01:59]} {[%emt 00:02:00]} 63. a3 {[%clk 00:00:57]}
{[%emt 00:00:23]} Qf4+ {[%clk 00:02:05]} {[%emt 00:00:23]} 64. Ke1 {[%clk
00:00:39]} {[%emt 00:00:48]} Kg4 {[%clk 00:01:52]} {[%emt 00:00:43]} 65. Qa7
{[%clk 00:00:39]} {[%emt 00:00:30]} Nf3+ {[%clk 00:02:07]} {[%emt 00:00:15]} 66.
Kd1 {[%clk 00:00:50]} {[%emt 00:00:20]} Qd6+ {[%clk 00:01:31]} {[%emt
00:01:06]} 67. Kc1 {[%clk 00:01:06]} {[%emt 00:00:13]} Nd4 {[%clk 00:01:53]}
{[%emt 00:00:09]} 68. Re1 {[%clk 00:00:59]} {[%emt 00:00:37]} Qf4+ {[%clk
00:01:18]} {[%emt 00:01:05]} 69. Kb1 {[%clk 00:01:14]} {[%emt 00:00:15]} Qd2
{[%clk 00:01:40]} {[%emt 00:00:09]} 70. Rg1+ {[%clk 00:01:22]} {[%emt
00:00:23]} Kf3 {[%clk 00:01:45]} {[%emt 00:00:25]} 71. Qh7 {[%clk 00:01:32]}
{[%emt 00:00:19]} e3 {[%clk 00:01:15]} {[%emt 00:01:00]} 72. Qb7+ {[%clk
00:00:36]} {[%emt 00:01:25]} Kf4 {[%clk 00:01:27]} {[%emt 00:00:19]} 73. Qc7+
{[%clk 00:00:59]} {[%emt 00:00:07]} Ke4 {[%clk 00:01:44]} {[%emt 00:00:13]} 74.
Qe7+ {[%clk 00:00:32]} {[%emt 00:00:57]} Kd3 {[%clk 00:02:05]} {[%emt
00:00:09]} 75. Rxg6 {[%clk 00:00:32]} {[%emt 00:00:30]} c3 {[%clk 00:02:00]}
{[%emt 00:00:35]} 0-1

[Event "Kvibergspelen 2018"]
[Site "Prioritet Serneke Arena, Krutvagen 2, Gothenburg, Sweden"]
[Date "2018.04.22"]
[Round "8.1"]
[White "Seo, Jung Min"]
[Black "Blomqvist, Erik"]
[Result "1-0"]
[TimeControl "15 minutes + 5 seconds per move from move one (Round 1 - 4) / 90 minutes + 30 seconds per move from move one (Round 5 - 8)"]
[WhiteTitle "FM"]
[BlackTitle "GM"]
[WhiteFideId "1734687"]
[BlackFideId "1709437"]
[WhiteElo "2349"]
[BlackElo "2494"]

1. d4 {[%clk 01:30:58]} Nf6 {[%clk 01:30:52]} {[%emt 00:00:08]} 2. Nf3 {[%clk
01:31:17]} {[%emt 00:00:11]} d5 {[%clk 01:31:07]} {[%emt 00:00:15]} 3. g3
{[%clk 01:31:38]} {[%emt 00:00:09]} e6 {[%clk 01:31:11]} {[%emt 00:00:26]} 4.
Bg2 {[%clk 01:31:46]} {[%emt 00:00:23]} Be7 {[%clk 01:31:23]} {[%emt 00:00:17]}
5. O-O {[%clk 01:31:56]} {[%emt 00:00:20]} O-O {[%clk 01:31:44]} {[%emt
00:00:09]} 6. c4 {[%clk 01:32:14]} {[%emt 00:00:12]} dxc4 {[%clk 01:30:56]}
{[%emt 00:01:19]} 7. Qc2 {[%clk 01:32:20]} {[%emt 00:00:24]} a6 {[%clk
01:31:17]} {[%emt 00:00:09]} 8. a4 {[%clk 01:32:07]} {[%emt 00:00:43]} c5
{[%clk 01:29:54]} {[%emt 00:01:52]} 9. dxc5 {[%clk 01:28:50]} {[%emt 00:03:47]}
Bxc5 {[%clk 01:29:38]} {[%emt 00:00:46]} 10. Qxc4 {[%clk 01:28:48]} {[%emt
00:00:32]} b6 {[%clk 01:29:53]} {[%emt 00:00:15]} 11. b4 {[%clk 01:19:49]}
{[%emt 00:09:29]} Be7 {[%clk 01:25:51]} {[%emt 00:04:31]} 12. Nd4 {[%clk
01:16:21]} {[%emt 00:03:59]} Ra7 {[%clk 01:25:32]} {[%emt 00:00:49]} 13. b5
{[%clk 01:13:57]} {[%emt 00:02:54]} e5 {[%clk 01:20:28]} {[%emt 00:05:33]} 14.
Nc6 {[%clk 01:10:57]} {[%emt 00:03:31]} axb5 {[%clk 01:20:40]} {[%emt
00:00:18]} 15. Nxe7+ {[%clk 01:10:28]} {[%emt 00:00:59]} Qxe7 {[%clk 01:20:23]}
{[%emt 00:00:46]} 16. Qxb5 {[%clk 01:10:42]} {[%emt 00:00:16]} Qe6 {[%clk
01:14:02]} {[%emt 00:06:49]} 17. Be3 {[%clk 01:02:11]} {[%emt 00:09:02]} Bd7
{[%clk 01:12:06]} {[%emt 00:02:25]} 18. Qxb6 {[%clk 01:02:33]} {[%emt
00:00:10]} Qxb6 {[%clk 01:12:15]} {[%emt 00:00:21]} 19. Bxb6 {[%clk 01:03:02]}
{[%emt 00:00:02]} Rxa4 {[%clk 01:12:34]} {[%emt 00:00:10]} 20. Rxa4 {[%clk
00:58:15]} {[%emt 00:05:16]} Bxa4 {[%clk 01:12:59]} {[%emt 00:00:05]} 21. Nc3
{[%clk 00:58:32]} {[%emt 00:00:13]} Bc6 {[%clk 01:13:04]} {[%emt 00:00:24]} 22.
e4 {[%clk 00:57:58]} {[%emt 00:01:05]} Nbd7 {[%clk 00:48:10]} {[%emt 00:25:25]}
23. Bc7 {[%clk 00:50:56]} {[%emt 00:07:31]} Ra8 {[%clk 00:44:08]} {[%emt
00:04:32]} 24. Nd5 {[%clk 00:49:49]} {[%emt 00:01:37]} Ne8 {[%clk 00:41:51]}
{[%emt 00:02:46]} 25. Ne7+ {[%clk 00:41:31]} {[%emt 00:08:48]} Kf8 {[%clk
00:42:03]} {[%emt 00:00:18]} 26. Nxc6 {[%clk 00:41:59]} {[%emt 00:00:03]} Nxc7
{[%clk 00:42:23]} {[%emt 00:00:09]} 27. Rd1 {[%clk 00:42:04]} {[%emt 00:00:26]}
Ke8 {[%clk 00:31:24]} {[%emt 00:11:28]} 28. Bh3 {[%clk 00:41:39]} {[%emt
00:00:56]} Nc5 {[%clk 00:27:29]} {[%emt 00:04:25]} 29. Nxe5 {[%clk 00:41:42]}
{[%emt 00:00:27]} Nxe4 {[%clk 00:26:11]} {[%emt 00:01:48]} 30. Bd7+ {[%clk
00:30:02]} {[%emt 00:12:10]} Ke7 {[%clk 00:24:25]} {[%emt 00:02:16]} 31. Bc6
{[%clk 00:30:11]} {[%emt 00:00:21]} Ra5 {[%clk 00:23:58]} {[%emt 00:00:57]} 32.
Rd7+ {[%clk 00:30:06]} {[%emt 00:00:34]} Ke6 {[%clk 00:22:17]} {[%emt
00:02:12]} 33. Nxf7 {[%clk 00:27:53]} {[%emt 00:02:43]} Ne8 {[%clk 00:16:06]}
{[%emt 00:06:41]} 34. Nd8+ {[%clk 00:27:57]} {[%emt 00:00:26]} Kf5 {[%clk
00:16:25]} {[%emt 00:00:10]} 35. Rf7+ {[%clk 00:23:51]} {[%emt 00:04:36]} N8f6
{[%clk 00:16:09]} {[%emt 00:00:46]} 36. Rxg7 {[%clk 00:24:10]} {[%emt
00:00:11]} h5 {[%clk 00:14:14]} {[%emt 00:02:25]} 37. Bxe4+ {[%clk 00:24:24]}
{[%emt 00:00:16]} Nxe4 {[%clk 00:13:50]} {[%emt 00:00:55]} 38. Rf7+ {[%clk
00:24:36]} {[%emt 00:00:17]} Kg6 {[%clk 00:14:14]} {[%emt 00:00:06]} 39. Rf4
{[%clk 00:24:56]} {[%emt 00:00:10]} Ng5 {[%clk 00:14:34]} {[%emt 00:00:11]} 40.
Kg2 {[%clk 00:25:12]} {[%emt 00:00:14]} Ra6 {[%clk 00:14:13]} {[%emt 00:00:52]}
41. Rc4 {[%clk 00:24:54]} {[%emt 00:00:47]} Rd6 {[%clk 00:13:46]} {[%emt
00:00:58]} 42. Rc6 {[%clk 00:24:50]} {[%emt 00:00:34]} 1-0

[Event "Kvibergspelen 2018"]
[Site "Prioritet Serneke Arena, Krutvagen 2, Gothenburg, Sweden"]
[Date "2018.04.22"]
[Round "8.2"]
[White "Tikkanen, Hans"]
[Black "Kucuksari, Kaan"]
[Result "1-0"]
[TimeControl "15 minutes + 5 seconds per move from move one (Round 1 - 4) / 90 minutes + 30 seconds per move from move one (Round 5 - 8)"]
[WhiteTitle "GM"]
[BlackTitle "FM"]
[WhiteFideId "1706446"]
[BlackFideId "6380166"]
[WhiteElo "2486"]
[BlackElo "2251"]

1. c4 {[%clk 01:30:56]} {[%emt 00:00:01]} c6 {[%clk 01:30:28]} {[%emt
00:00:33]} 2. Nf3 {[%clk 01:31:19]} {[%emt 00:00:07]} d5 {[%clk 01:30:53]}
{[%emt 00:00:06]} 3. e3 {[%clk 01:31:37]} {[%emt 00:00:13]} Nf6 {[%clk
01:31:15]} {[%emt 00:00:08]} 4. Nc3 {[%clk 01:31:57]} {[%emt 00:00:10]} Nbd7
{[%clk 01:31:23]} {[%emt 00:00:21]} 5. Qc2 {[%clk 01:22:53]} {[%emt 00:09:34]}
e6 {[%clk 01:31:29]} {[%emt 00:00:25]} 6. b3 {[%clk 01:22:43]} {[%emt
00:00:40]} Bd6 {[%clk 01:31:48]} {[%emt 00:00:11]} 7. Bb2 {[%clk 01:20:25]}
{[%emt 00:02:47]} O-O {[%clk 01:32:10]} {[%emt 00:00:08]} 8. Be2 {[%clk
01:18:32]} {[%emt 00:02:23]} Qe7 {[%clk 01:31:15]} {[%emt 00:01:26]} 9. Rg1
{[%clk 01:05:08]} {[%emt 00:13:54]} e5 {[%clk 01:28:41]} {[%emt 00:03:04]} 10.
g4 {[%clk 01:02:45]} {[%emt 00:02:53]} e4 {[%clk 01:24:24]} {[%emt 00:04:48]}
11. Nd4 {[%clk 00:50:40]} {[%emt 00:12:35]} Bxh2 {[%clk 01:13:11]} {[%emt
00:11:43]} 12. Rg2 {[%clk 00:49:21]} {[%emt 00:01:48]} Be5 {[%clk 01:13:15]}
{[%emt 00:00:26]} 13. g5 {[%clk 00:48:28]} {[%emt 00:01:23]} Bxd4 {[%clk
01:10:30]} {[%emt 00:03:14]} 14. exd4 {[%clk 00:48:50]} {[%emt 00:00:08]} Ne8
{[%clk 01:10:48]} {[%emt 00:00:12]} 15. cxd5 {[%clk 00:44:44]} {[%emt
00:04:35]} Nb6 {[%clk 01:07:02]} {[%emt 00:04:17]} 16. Qxe4 {[%clk 00:31:35]}
{[%emt 00:13:39]} Qxe4 {[%clk 00:54:17]} {[%emt 00:13:15]} 17. Nxe4 {[%clk
00:31:59]} {[%emt 00:00:06]} cxd5 {[%clk 00:52:29]} {[%emt 00:02:18]} 18. Nc3
{[%clk 00:23:20]} {[%emt 00:09:10]} Nc7 {[%clk 00:48:47]} {[%emt 00:04:12]} 19.
Bd3 {[%clk 00:21:44]} {[%emt 00:02:05]} Ne6 {[%clk 00:47:13]} {[%emt 00:02:03]}
20. Ne2 {[%clk 00:19:41]} {[%emt 00:02:33]} f5 {[%clk 00:40:45]} {[%emt
00:06:58]} 21. f4 {[%clk 00:17:46]} {[%emt 00:02:26]} g6 {[%clk 00:39:49]}
{[%emt 00:01:27]} 22. Kf2 {[%clk 00:15:49]} {[%emt 00:02:26]} Bd7 {[%clk
00:39:52]} {[%emt 00:00:26]} 23. Ba3 {[%clk 00:14:09]} {[%emt 00:02:10]} Rf7
{[%clk 00:33:47]} {[%emt 00:06:35]} 24. Bd6 {[%clk 00:10:58]} {[%emt 00:03:41]}
Nc8 {[%clk 00:30:50]} {[%emt 00:03:28]} 25. Be5 {[%clk 00:10:58]} {[%emt
00:00:30]} Ne7 {[%clk 00:30:57]} {[%emt 00:00:23]} 26. Nc3 {[%clk 00:00:56]}
{[%emt 00:10:32]} Rd8 {[%clk 00:22:49]} {[%emt 00:08:37]} 27. Rg3 {[%clk
00:01:21]} {[%emt 00:00:05]} a6 {[%clk 00:20:32]} {[%emt 00:02:47]} 28. Re3
{[%clk 00:01:30]} {[%emt 00:00:21]} Bc8 {[%clk 00:19:38]} {[%emt 00:01:24]} 29.
Rc1 {[%clk 00:00:45]} {[%emt 00:01:15]} Nc6 {[%clk 00:18:05]} {[%emt 00:02:03]}
30. Ne2 {[%clk 00:01:11]} {[%emt 00:00:05]} Bd7 {[%clk 00:17:41]} {[%emt
00:00:53]} 31. Bb1 {[%clk 00:00:45]} {[%emt 00:00:56]} Rff8 {[%clk 00:15:08]}
{[%emt 00:03:03]} 32. a3 {[%clk 00:00:49]} {[%emt 00:00:26]} Rfe8 {[%clk
00:12:05]} {[%emt 00:03:33]} 33. b4 {[%clk 00:00:44]} {[%emt 00:00:36]} Rc8
{[%clk 00:10:38]} {[%emt 00:01:56]} 34. Rec3 {[%clk 00:00:36]} {[%emt
00:00:38]} Nxe5 {[%clk 00:10:12]} {[%emt 00:00:55]} 35. dxe5 {[%clk 00:01:01]}
{[%emt 00:00:05]} Rcd8 {[%clk 00:09:55]} {[%emt 00:00:47]} 36. d4 {[%clk
00:00:35]} {[%emt 00:00:56]} Kf7 {[%clk 00:08:50]} {[%emt 00:01:35]} 37. Ke3
{[%clk 00:00:40]} {[%emt 00:00:25]} Rh8 {[%clk 00:08:12]} {[%emt 00:01:08]} 38.
Rh1 {[%clk 00:00:33]} {[%emt 00:00:38]} h6 {[%clk 00:06:39]} {[%emt 00:02:04]}
39. gxh6 {[%clk 00:00:53]} {[%emt 00:00:09]} Rh7 {[%clk 00:07:07]} {[%emt
00:00:02]} 40. Ba2 {[%clk 00:00:42]} {[%emt 00:00:41]} Bb5 {[%clk 00:06:59]}
{[%emt 00:00:38]} 41. Ng1 {[%clk 00:00:50]} {[%emt 00:00:22]} g5 {[%clk
00:04:34]} {[%emt 00:02:55]} 42. Nh3 {[%clk 00:00:52]} {[%emt 00:00:27]} gxf4+
{[%clk 00:04:52]} {[%emt 00:00:12]} 43. Nxf4 {[%clk 00:01:14]} {[%emt
00:00:09]} Nxf4 {[%clk 00:05:05]} {[%emt 00:00:17]} 44. Kxf4 {[%clk 00:01:37]}
{[%emt 00:00:06]} Ke6 {[%clk 00:05:32]} {[%emt 00:00:03]} 45. Rg3 {[%clk
00:01:28]} {[%emt 00:00:39]} 1-0